bitfinex-derivatives/quotes_BTCF0:USTF0_20241110
["timestamp","ask_amount","ask_price","bid_price","bid_amount"]
[1731206057274,0.0249772,77295.0,77291.0,0.064654]
[1731206057465,0.0249772,77294.0,77291.0,0.064654]
[1731206057775,0.06465,77297.0,77291.0,0.064654]
[1731206057978,0.02498009,77296.0,77293.0,0.064652]
[1731206058171,0.11087507,77303.0,77294.0,0.064652]
[1731206058492,0.064646,77301.0,77294.0,0.064652]
[1731206058670,0.02498019,77300.0,77294.0,0.064652]
[1731206058978,0.02498017,77299.0,77294.0,0.064652]
[1731206059271,0.04204798,77298.0,77286.0,0.00908891]
[1731206059572,0.04204796,77297.0,77290.0,0.064655]
[1731206059772,0.11087507,77303.0,77290.0,0.064655]
[1731206059773,0.04204796,77296.0,77290.0,0.064655]
[1731206060074,0.4675006,77295.0,77286.0,0.00908891]
[1731206060276,0.01706781,77294.0,77281.0,0.11944]
[1731206060576,0.01706781,77294.0,77290.0,0.064655]
[1731206061276,0.425452,77295.0,77290.0,0.064655]
[1731206062168,0.01720701,77294.0,77284.0,0.1034]
[1731206062468,0.06466,77285.0,77280.0,0.008893]
[1731206062668,0.01720701,77284.0,77279.0,0.3626]
[1731206062864,0.01720701,77283.0,77279.0,0.3608]
[1731206063075,0.01720701,77282.0,77279.0,0.3608]
[1731206063274,0.3608,77288.0,77279.0,0.3608]
[1731206063275,0.01720701,77281.0,77279.0,0.3608]
[1731206063579,0.01714937,77280.0,77279.0,0.425465]
[1731206063769,0.01714937,77280.0,77279.0,0.43450334]
[1731206064972,0.3608,77295.0,77279.0,0.82270334]
[1731206065175,0.3608,77295.0,77293.0,0.064652]
[1731206065671,0.064652,77294.0,77286.0,0.064658]
[1731206065874,0.064655,77291.0,77286.0,0.064658]
[1731206066780,0.3608,77295.0,77279.0,0.36983834]
[1731206067081,0.064652,77294.0,77286.0,0.064658]
[1731206068082,0.064652,77294.0,77280.0,0.064663]
[1731206068284,0.064652,77294.0,77279.0,0.36983834]
[1731206068285,0.064652,77294.0,77283.0,0.064661]
[1731206068978,0.3608,77295.0,77283.0,0.064661]
[1731206069181,0.064653,77293.0,77283.0,0.064661]
[1731206070681,0.064654,77292.0,77283.0,0.064661]
[1731206070983,0.3608,77292.0,77279.0,0.00903834]
[1731206071281,0.064658,77287.0,77277.0,0.3608]
[1731206071679,0.3608,77292.0,77277.0,0.3608]
[1731206071981,0.3608,77292.0,77288.0,0.064657]
[1731206072687,0.3608,77292.0,77287.0,0.11087507]
[1731206072984,0.3608,77292.0,77290.0,0.064655]
[1731206076984,0.3608,77294.0,77291.0,0.064654]
[1731206077978,0.3608,77294.0,77287.0,0.11087507]
[1731206078285,0.00194108,77303.0,77287.0,0.11087507]
[1731206078286,0.00194108,77303.0,77302.0,0.064645]
[1731206078476,0.3608,77310.0,77309.0,0.064639]
[1731206080083,0.3608,77310.0,77309.0,0.07350235]
[1731206086277,0.3608,77314.0,77309.0,0.07350235]
[1731206086686,0.3608,77314.0,77310.0,0.064638]
[1731206086889,0.11087507,77321.0,77310.0,0.064638]
[1731206087097,0.064635,77315.0,77310.0,0.064638]
[1731206089388,0.3608,77317.0,77303.0,0.32870987]
[1731206089695,0.00194051,77326.0,77324.0,0.064626]
[1731206089893,0.00194051,77326.0,77318.0,0.064632]
[1731206090192,0.00194051,77326.0,77321.0,0.064629]
[1731206090893,0.00194051,77326.0,77310.0,0.3608]
[1731206091092,0.02497086,77325.0,77319.0,0.064631]
[1731206091299,0.00194051,77326.0,77324.0,0.064626]
[1731206091497,0.00194051,77326.0,77324.0,0.03581978]
[1731206093699,0.3608,77344.0,77342.0,0.064612]
[1731206093903,0.02496663,77343.0,77342.0,0.064612]
[1731206094095,0.02496663,77343.0,77335.0,0.064617]
[1731206094288,0.3608,77344.0,77335.0,0.064617]
[1731206094289,0.02496663,77342.0,77335.0,0.064617]
[1731206094591,0.11087507,77343.0,77335.0,0.064617]
[1731206094800,0.064613,77341.0,77335.0,0.064617]
[1731206095497,0.3608,77344.0,77328.0,0.064623]
[1731206095498,0.064617,77336.0,77328.0,0.064623]
[1731206095800,0.064617,77336.0,77330.0,0.064621]
[1731206096202,0.11087507,77337.0,77326.0,0.0108477]
[1731206096398,0.11087507,77337.0,77332.0,0.06462]
[1731206096999,0.11087507,77337.0,77326.0,0.0108477]
[1731206097296,0.064617,77336.0,77328.0,0.064624]
[1731206098692,0.169817,77336.0,77330.0,0.064622]
[1731206098902,0.3608,77337.0,77336.0,0.064617]
[1731206099402,0.3608,77337.0,77336.0,0.040617]
[1731206099990,0.11087507,77343.0,77336.0,0.040617]
[1731206100196,0.17548607,77343.0,77336.0,0.040617]
[1731206100405,0.11087507,77343.0,77326.0,0.0108477]
[1731206100600,0.3608,77344.0,77339.0,0.064614]
[1731206100795,0.3608,77344.0,77326.0,0.0108477]
[1731206101103,0.064613,77341.0,77330.0,0.064622]
[1731206101303,0.11087507,77343.0,77326.0,0.0108477]
[1731206101495,0.01715653,77342.0,77326.0,0.0108477]
[1731206101696,0.01715653,77341.0,77338.0,0.064615]
[1731206101899,0.11087507,77343.0,77339.0,0.064614]
[1731206101900,0.01715653,77340.0,77339.0,0.064614]
[1731206103414,0.3608,77344.0,77342.0,0.064611]
[1731206103907,0.3608,77344.0,77336.0,0.064617]
[1731206104508,0.3608,77344.0,77337.0,0.064616]
[1731206105703,0.3608,77344.0,77326.0,0.0108477]
[1731206105909,0.064619,77334.0,77329.0,0.064622]
[1731206106104,0.064624,77328.0,77326.0,0.00193997]
[1731206106301,0.425424,77328.0,77326.0,0.00193997]
[1731206106495,0.02497051,77327.0,77326.0,0.00107933]
[1731206107005,0.02497114,77327.0,77326.0,0.00107933]
[1731206107214,0.53629907,77328.0,77326.0,0.00107933]
[1731206109312,0.05662805,77327.0,77326.0,0.00107933]
[1731206109610,0.05662889,77327.0,77326.0,0.00107933]
[1731206111102,0.48427303,77327.0,77307.0,0.06464]
[1731206111309,0.48427303,77327.0,77303.0,0.00883047]
[1731206111310,0.064641,77308.0,77303.0,0.00883047]
[1731206111502,0.064646,77302.0,77295.0,0.11924]
[1731206112007,0.3608,77305.0,77295.0,0.11924]
[1731206112207,0.02497759,77304.0,77298.0,0.064648]
[1731206112413,0.3608,77305.0,77295.0,0.11924]
[1731206112607,0.02497758,77304.0,77295.0,0.11924]
[1731206112805,0.3608,77305.0,77300.0,0.064646]
[1731206114312,0.064645,77303.0,77294.0,0.064652]
[1731206114806,0.064645,77303.0,77293.0,0.11369036]
[1731206114807,0.064645,77303.0,77295.0,0.064651]
[1731206115514,0.11087507,77308.0,77293.0,0.11369036]
[1731206115515,0.3608,77302.0,77293.0,0.11369036]
[1731206115704,0.3608,77302.0,77300.0,0.064647]
[1731206118010,0.3608,77303.0,77300.0,0.064647]
[1731206119111,0.3608,77303.0,77293.0,0.11369036]
[1731206119315,0.3608,77303.0,77301.0,0.064645]
[1731206120208,0.11087507,77308.0,77301.0,0.064645]
[1731206120409,0.3608,77310.0,77306.0,0.064641]
[1731206121111,0.3608,77310.0,77308.0,0.06464]
[1731206122812,0.3627406,77318.0,77316.0,0.064633]
[1731206123007,0.0019406,77318.0,77316.0,0.064633]
[1731206124216,0.3627406,77318.0,77316.0,0.07356775]
[1731206125012,0.11087507,77334.0,77316.0,0.00893475]
[1731206125208,0.3608,77337.0,77322.0,0.3608]
[1731206125418,0.3608,77337.0,77336.0,0.064617]
[1731206125606,0.00194032,77341.0,77333.0,0.064619]
[1731206125607,0.11087507,77340.0,77333.0,0.064619]
[1731206126514,0.11087507,77340.0,77328.0,0.1076]
[1731206126812,0.3608,77336.0,77335.0,0.064618]
[1731206127627,0.3608,77336.0,77330.0,0.064621]
[1731206127920,0.11087507,77334.0,77331.0,0.06462]
[1731206128526,0.47167507,77334.0,77328.0,0.11638752]
[1731206128817,0.064621,77332.0,77325.0,0.064626]
[1731206129015,0.11087507,77326.0,77316.0,0.0994]
[1731206129322,0.064627,77324.0,77320.0,0.01106457]
[1731206129522,0.064627,77324.0,77320.0,0.00194016]
[1731206131815,0.47167507,77326.0,77320.0,0.00194016]
[1731206132011,0.064629,77322.0,77320.0,0.00194016]
[1731206132321,0.064639,77310.0,77299.0,0.064647]
[1731206132519,0.425439,77310.0,77299.0,0.064647]
[1731206132727,0.3608,77310.0,77299.0,0.064647]
[1731206133023,0.3608,77310.0,77300.0,0.064647]
[1731206133725,0.0989,77309.0,77300.0,0.064647]
[1731206134528,0.11087507,77303.0,77300.0,0.064647]
[1731206134717,0.3608,77302.0,77293.0,0.064653]
[1731206134919,0.11087507,77296.0,77293.0,0.064653]
[1731206136927,0.11087507,77296.0,77291.0,0.00194056]
[1731206137126,0.3608,77302.0,77291.0,0.00194056]
[1731206137628,0.3608,77302.0,77299.0,0.064647]
[1731206137816,0.3608,77302.0,77291.0,0.00194056]
[1731206138016,0.3608,77302.0,77300.0,0.064647]
[1731206139324,0.0989,77309.0,77291.0,0.00194056]
[1731206139526,0.0989,77309.0,77308.0,0.06464]
[1731206140421,0.3608,77310.0,77308.0,0.06464]
[1731206143834,0.3608,77310.0,77308.0,0.03648584]
[1731206148536,0.3608,77310.0,77308.0,0.04518778]
[1731206149431,0.00194054,77312.0,77310.0,0.064638]
[1731206151631,0.3608,77320.0,77299.0,0.11990062]
[1731206151632,0.3608,77320.0,77318.0,0.064632]
[1731206151825,0.3608,77320.0,77306.0,0.11087507]
[1731206151826,0.4589,77327.0,77308.0,0.06464]
[1731206152031,0.4589,77327.0,77306.0,0.11087507]
[1731206152032,0.4589,77327.0,77310.0,0.064638]
[1731206152231,0.4589,77327.0,77309.0,0.11916]
[1731206152634,0.4589,77327.0,77317.0,0.064633]
[1731206152840,0.4589,77327.0,77309.0,0.11916]
[1731206153139,0.17550407,77322.0,77314.0,0.064635]
[1731206153529,0.064632,77319.0,77305.0,0.11916]
[1731206153740,0.3608,77320.0,77306.0,0.064642]
[1731206153942,0.425431,77320.0,77312.0,0.064637]
[1731206154441,0.3608,77320.0,77312.0,0.064637]
[1731206154638,0.064631,77319.0,77312.0,0.064637]
[1731206154840,0.064639,77310.0,77301.0,0.064646]
[1731206155138,0.3608,77313.0,77306.0,0.064641]
[1731206155139,0.205,77309.0,77306.0,0.064641]
[1731206156051,0.205,77309.0,77307.0,0.064641]
[1731206156255,0.3608,77313.0,77310.0,0.064638]
[1731206156454,0.425431,77320.0,77310.0,0.064638]
[1731206156455,0.527731,77320.0,77310.0,0.064638]
[1731206156958,0.527731,77320.0,77304.0,0.3608]
[1731206157155,0.4631,77320.0,77316.0,0.064633]
[1731206157359,0.4631,77320.0,77316.0,0.03752632]
[1731206157562,0.4631,77320.0,77317.0,0.064632]
[1731206158155,0.4631,77320.0,77318.0,0.064632]
[1731206158658,0.3608,77320.0,77318.0,0.064632]
[1731206159449,0.1023,77329.0,77327.0,0.064624]
[1731206162964,0.3608,77330.0,77318.0,0.00895124]
[1731206163165,0.3608,77330.0,77328.0,0.064623]
[1731206163568,0.3608,77330.0,77315.0,0.2065]
[1731206163569,0.3608,77330.0,77315.0,0.21538974]
[1731206163861,0.3608,77330.0,77321.0,0.064629]
[1731206163862,0.064623,77329.0,77321.0,0.064629]
[1731206165568,0.3608,77330.0,77321.0,0.064629]
[1731206165569,0.064625,77326.0,77321.0,0.064629]
[1731206165863,0.17550007,77326.0,77321.0,0.064629]
[1731206166467,0.05662852,77325.0,77321.0,0.064629]
[1731206166765,0.05662852,77324.0,77321.0,0.064629]
[1731206166975,0.05662852,77323.0,77321.0,0.064629]
[1731206167173,0.064634,77316.0,77308.0,0.06464]
[1731206167469,0.05662856,77322.0,77309.0,0.064639]
[1731206167470,0.02497137,77315.0,77309.0,0.064639]
[1731206167666,0.08960637,77314.0,77309.0,0.064639]
[1731206167864,0.02497137,77313.0,77309.0,0.064639]
[1731206169570,0.3608,77316.0,77304.0,0.48846918]
[1731206169571,0.064638,77311.0,77304.0,0.48846918]
[1731206169774,0.02497137,77310.0,77304.0,0.48846918]
[1731206169966,0.02497137,77310.0,77304.0,0.36950918]
[1731206169967,0.12127198,77310.0,77304.0,0.36950918]
[1731206170162,0.05663298,77309.0,77304.0,0.36950918]
[1731206170573,0.05663298,77309.0,77304.0,0.43415218]
[1731206171278,0.05663298,77309.0,77304.0,0.00870918]
[1731206171279,0.064642,77306.0,77304.0,0.00870918]
[1731206171575,0.05663298,77305.0,77300.0,0.064647]
[1731206171971,0.064651,77296.0,77290.0,0.11896]
[1731206172166,0.02497137,77295.0,77290.0,0.11896]
[1731206172483,0.02497137,77295.0,77289.0,0.1045]
[1731206172484,0.02497137,77295.0,77288.0,0.064657]
[1731206172673,0.02497137,77295.0,77286.0,0.11896]
[1731206172866,0.02497137,77295.0,77294.0,0.36982066]
[1731206173066,0.02497137,77299.0,77294.0,0.43447266]
[1731206173277,0.05663878,77299.0,77294.0,0.43447266]
[1731206173476,0.06465,77297.0,77294.0,0.36982066]
[1731206173776,0.06465,77297.0,77294.0,0.3608]
[1731206174272,0.06465,77297.0,77291.0,0.01096835]
[1731206174578,0.064653,77293.0,77291.0,0.00194056]
[1731206174775,0.425453,77293.0,77291.0,0.00194056]
[1731206176066,0.53632807,77293.0,77291.0,0.00194056]
[1731206177666,0.47167507,77293.0,77277.0,0.3608]
[1731206177870,0.064667,77277.0,77275.0,0.00194127]
[1731206180471,0.3608,77278.0,77262.0,0.00906077]
[1731206180671,0.3608,77278.0,77258.0,0.57617507]
[1731206180672,0.3608,77270.0,77268.0,0.064674]
[1731206182972,0.064666,77277.0,77270.0,0.064672]
[1731206183175,0.064666,77277.0,77271.0,0.064671]
[1731206185384,0.3608,77278.0,77265.0,0.00901141]
[1731206185385,0.064672,77270.0,77265.0,0.00901141]
[1731206185678,0.064672,77270.0,77264.0,0.064677]
[1731206187382,0.11087507,77274.0,77264.0,0.064677]
[1731206187383,0.064673,77269.0,77264.0,0.064677]
[1731206188378,0.064674,77268.0,77259.0,0.425481]
[1731206188579,0.165074,77268.0,77259.0,0.425481]
[1731206189375,0.064676,77266.0,77259.0,0.064681]
[1731206189804,0.1004,77268.0,77258.0,0.07563741]
[1731206189805,0.3608,77263.0,77258.0,0.07563741]
[1731206189973,0.425479,77263.0,77258.0,0.07375741]
[1731206190882,0.1044,77267.0,77261.0,0.064679]
[1731206191389,0.3608,77270.0,77258.0,0.07375741]
[1731206191580,0.3608,77270.0,77267.0,0.064674]
[1731206191981,0.1188,77276.0,77267.0,0.064674]
[1731206192181,0.06467,77273.0,77267.0,0.064674]
[1731206192384,0.064671,77272.0,77267.0,0.064674]
[1731206193992,0.425471,77272.0,77267.0,0.064674]
[1731206194400,0.425471,77272.0,77259.0,0.11087507]
[1731206194401,0.3608,77272.0,77259.0,0.11087507]
[1731206194694,0.3608,77272.0,77267.0,0.064674]
[1731206196184,0.47167507,77272.0,77260.0,0.06468]
[1731206196588,0.064674,77268.0,77261.0,0.064679]
[1731206197288,0.064674,77268.0,77262.0,0.064678]
[1731206197795,0.47167507,77272.0,77254.0,0.064685]
[1731206197796,0.064679,77262.0,77254.0,0.064685]
[1731206197996,0.3608,77264.0,77254.0,0.064685]
[1731206198195,0.06468,77261.0,77254.0,0.064685]
[1731206198394,0.06468,77261.0,77255.0,0.064684]
[1731206198692,0.06468,77261.0,77256.0,0.3608]
[1731206198897,0.06468,77261.0,77257.0,0.064683]
[1731206199487,0.2134,77263.0,77252.0,0.01070436]
[1731206199692,0.064682,77258.0,77252.0,0.01070436]
[1731206199888,0.064683,77257.0,77252.0,0.01070436]
[1731206200289,0.064686,77254.0,77252.0,0.01070436]
[1731206200490,0.11087507,77260.0,77252.0,0.07539136]
[1731206201189,0.064684,77256.0,77252.0,0.07539136]
[1731206201394,0.11087507,77253.0,77252.0,0.01070436]
[1731206201995,0.3608,77255.0,77252.0,0.01070436]
[1731206202194,0.3608,77255.0,77252.0,0.07539136]
[1731206203595,0.3608,77255.0,77253.0,0.03810396]
[1731206204097,0.3608,77255.0,77252.0,0.07539136]
[1731206205189,0.3608,77255.0,77252.0,0.12620703]
[1731206205605,0.3608,77255.0,77252.0,0.06152003]
[1731206205795,0.3608,77255.0,77253.0,0.064686]
[1731206206193,0.3608,77255.0,77253.0,0.11550167]
[1731206206194,0.32843038,77255.0,77253.0,0.11550167]
[1731206206598,0.32843038,77255.0,77253.0,0.064686]
[1731206207194,0.064682,77258.0,77253.0,0.11550167]
[1731206207395,0.064682,77258.0,77257.0,0.03829112]
[1731206208105,0.064682,77258.0,77254.0,0.05081567]
[1731206208301,0.064682,77258.0,77257.0,0.03829218]
[1731206208510,0.064682,77258.0,77254.0,0.11550067]
[1731206208992,0.3608,77261.0,77254.0,0.05081567]
[1731206209193,0.3608,77261.0,77257.0,0.10297536]
[1731206210005,0.064678,77259.0,77257.0,0.03829236]
[1731206210403,0.3608,77261.0,77257.0,0.03829236]
[1731206210606,0.425465,77271.0,77257.0,0.03829236]
[1731206211103,0.425465,77271.0,77265.0,0.064669]
[1731206211306,0.3608,77271.0,77260.0,0.05081567]
[1731206211510,0.3608,77271.0,77263.0,0.3608]
[1731206211804,0.3608,77271.0,77264.0,0.03829236]
[1731206212104,0.3608,77271.0,77269.0,0.064666]
[1731206212298,0.02589485,77283.0,77270.0,0.3608]
[1731206212499,0.3608,77288.0,77273.0,0.11087507]
[1731206212805,0.2104,77292.0,77279.0,0.11087507]
[1731206212991,0.21797507,77292.0,77285.0,0.064653]
[1731206213604,0.1071,77292.0,77287.0,0.064651]
[1731206214001,0.3608,77294.0,77287.0,0.064651]
[1731206214196,0.3608,77294.0,77281.0,0.11884]
[1731206214197,0.3608,77294.0,77288.0,0.06465]
[1731206214397,0.3608,77294.0,77281.0,0.11884]
[1731206214398,0.1067,77299.0,77291.0,0.064648]
[1731206215008,0.064649,77290.0,77286.0,0.3626]
[1731206215199,0.11087507,77287.0,77286.0,0.3608]
[1731206215401,0.064658,77280.0,77276.0,0.00873152]
[1731206215596,0.47167507,77287.0,77272.0,0.1186]
[1731206215899,0.064653,77285.0,77275.0,0.064661]
[1731206218402,0.3608,77287.0,77275.0,0.064661]
[1731206218601,0.36950834,77287.0,77275.0,0.064661]
[1731206218802,0.064655,77283.0,77275.0,0.064661]
[1731206220400,0.36950834,77287.0,77271.0,0.62189929]
[1731206220606,0.064659,77279.0,77272.0,0.1186]
[1731206220802,0.064661,77276.0,77272.0,0.1186]
[1731206221003,0.36950834,77287.0,77272.0,0.1186]
[1731206221308,0.36950834,77287.0,77271.0,0.62185929]
[1731206221510,0.36950834,77287.0,77271.0,0.62001929]
[1731206221710,0.3608,77280.0,77271.0,0.51621929]
[1731206222104,0.064664,77273.0,77271.0,0.36962693]
[1731206222311,0.2076,77279.0,77272.0,0.064664]
[1731206223511,0.2076,77279.0,77271.0,0.36962693]
[1731206223715,0.064661,77276.0,77271.0,0.36962693]
[1731206223917,0.064661,77276.0,77271.0,0.3608]
[1731206224111,0.064664,77273.0,77271.0,0.3608]
[1731206225114,0.064669,77267.0,77263.0,0.3608]
[1731206226910,0.064669,77266.0,77263.0,0.3608]
[1731206227619,0.064669,77266.0,77263.0,0.00875141]
[1731206227811,0.06467,77265.0,77260.0,0.1076]
[1731206229307,0.06467,77265.0,77260.0,0.11656203]
[1731206229710,0.064673,77262.0,77260.0,0.00896203]
[1731206229911,0.11087507,77265.0,77255.0,0.3608]
[1731206230208,0.3608,77271.0,77259.0,0.11087507]
[1731206230407,0.3608,77276.0,77269.0,0.064666]
[1731206230710,0.06466,77277.0,77271.0,0.064664]
[1731206230918,0.42546,77277.0,77271.0,0.064664]
[1731206231110,0.064661,77276.0,77271.0,0.064664]
[1731206231412,0.064661,77276.0,77270.0,0.1062]
[1731206231413,0.3608,77277.0,77270.0,0.1062]
[1731206231716,0.064665,77271.0,77261.0,0.1186]
[1731206232214,0.3608,77269.0,77263.0,0.06467]
[1731206232415,0.064669,77266.0,77263.0,0.06467]
[1731206233114,0.064669,77266.0,77259.0,0.06467]
[1731206233314,0.1001,77276.0,77259.0,0.06467]
[1731206233618,0.064663,77273.0,77263.0,0.06467]
[1731206234122,0.47167507,77277.0,77269.0,0.064666]
[1731206234123,0.3608,77277.0,77269.0,0.064666]
[1731206236322,0.425461,77277.0,77269.0,0.064666]
[1731206236620,0.425461,77277.0,77263.0,0.06467]
[1731206236621,0.064664,77272.0,77263.0,0.06467]
[1731206236814,0.064664,77272.0,77265.0,0.064669]
[1731206237015,0.064664,77272.0,77263.0,0.06467]
[1731206237220,0.064664,77272.0,77266.0,0.064669]
[1731206238212,0.064664,77272.0,77263.0,0.06467]
[1731206238213,0.11087507,77276.0,77263.0,0.06467]
[1731206238412,0.064667,77269.0,77263.0,0.06467]
[1731206238618,0.064668,77267.0,77263.0,0.06467]
[1731206238818,0.064669,77266.0,77263.0,0.07340089]
[1731206240628,0.3608,77271.0,77263.0,0.07340089]
[1731206240930,0.02498872,77270.0,77263.0,0.13807189]
[1731206241228,0.3608,77271.0,77263.0,0.13807189]
[1731206241425,0.3608,77271.0,77264.0,0.06467]
[1731206242219,0.064666,77270.0,77264.0,0.06467]
[1731206243019,0.064669,77267.0,77263.0,0.00873089]
[1731206243223,0.064669,77267.0,77259.0,0.3608]
[1731206243224,0.064669,77267.0,77259.0,0.425475]
[1731206243422,0.3608,77271.0,77259.0,0.3697007]
[1731206243730,0.3608,77271.0,77266.0,0.064669]
[1731206243938,0.3608,77271.0,77268.0,0.064667]
[1731206244227,0.3608,77271.0,77269.0,0.064666]
[1731206244423,0.064666,77270.0,77262.0,0.064672]
[1731206244623,0.3608,77271.0,77262.0,0.064672]
[1731206244837,0.064667,77269.0,77262.0,0.064672]
[1731206245133,0.064667,77269.0,77263.0,0.064671]
[1731206246520,0.064667,77269.0,77259.0,0.3697007]
[1731206246521,0.064671,77264.0,77259.0,0.3697007]
[1731206246731,0.47167507,77271.0,77259.0,0.3608]
[1731206246928,0.064674,77261.0,77259.0,0.3608]
[1731206251019,0.064676,77258.0,77257.0,0.00886503]
[1731206251337,0.064676,77258.0,77250.0,0.425482]
[1731206251527,0.064676,77258.0,77250.0,0.427282]
[1731206252735,0.064678,77256.0,77252.0,0.01076605]
[1731206252936,0.064678,77256.0,77252.0,0.00194138]
[1731206253434,0.064678,77256.0,77252.0,0.06662138]
[1731206254229,0.5707,77260.0,77252.0,0.00194138]
[1731206254428,0.4657,77260.0,77253.0,0.11087507]
[1731206254627,0.3608,77260.0,77258.0,0.064675]
[1731206256640,0.1004,77269.0,77258.0,0.47167507]
[1731206257029,0.1004,77269.0,77258.0,0.11087507]
[1731206257433,0.1004,77269.0,77265.0,0.06467]
[1731206257635,0.1004,77269.0,77259.0,0.064675]
[1731206257941,0.1004,77269.0,77264.0,0.06467]
[1731206258337,0.1004,77269.0,77258.0,0.47347507]
[1731206258545,0.064666,77270.0,77267.0,0.064668]
[1731206258840,0.3608,77271.0,77267.0,0.064668]
[1731206259543,0.3608,77271.0,77270.0,0.064666]
[1731206259737,0.3608,77271.0,77263.0,0.11087507]
[1731206259946,0.425465,77271.0,77265.0,0.064669]
[1731206260128,0.425465,77271.0,77261.0,0.03829236]
[1731206260129,0.064668,77268.0,77261.0,0.03829236]
[1731206260437,0.064668,77268.0,77262.0,0.064672]
[1731206260839,0.064668,77267.0,77262.0,0.10296436]
[1731206261040,0.3608,77271.0,77264.0,0.03829236]
[1731206262731,0.064669,77266.0,77264.0,0.03829236]
[1731206263332,0.064669,77266.0,77265.0,0.03829236]
[1731206264142,0.064669,77266.0,77265.0,0.03827292]
[1731206264343,0.064669,77266.0,77262.0,0.064672]
[1731206264645,0.11087507,77269.0,77262.0,0.064672]
[1731206264842,0.06467,77265.0,77262.0,0.064672]
[1731206265735,0.064672,77263.0,77259.0,0.06467]
[1731206266240,0.11087507,77269.0,77259.0,0.06467]
[1731206266438,0.064672,77263.0,77259.0,0.06467]
[1731206268549,0.11087507,77269.0,77259.0,0.06467]
[1731206268849,0.064673,77262.0,77259.0,0.06467]
[1731206269240,0.11087507,77269.0,77259.0,0.06467]
[1731206269546,0.064674,77261.0,77259.0,0.06467]
[1731206270833,0.425474,77261.0,77259.0,0.06467]
[1731206271045,0.064674,77261.0,77259.0,0.06467]
[1731206271442,0.064674,77261.0,77260.0,0.03827199]
[1731206271639,0.064674,77261.0,77259.0,0.10294199]
[1731206271946,0.064674,77261.0,77259.0,0.06467]
[1731206275043,0.064675,77259.0,77258.0,0.00895495]
[1731206275252,0.29034229,77262.0,77257.0,0.03827199]
[1731206275456,0.064678,77255.0,77254.0,0.02155522]
[1731206275755,0.064681,77252.0,77251.0,0.06467]
[1731206276355,0.064682,77251.0,77249.0,0.06467]
[1731206278650,0.21909107,77262.0,77250.0,0.07125122]
[1731206278847,0.064677,77257.0,77254.0,0.07125122]
[1731206279051,0.064677,77257.0,77254.0,0.43205122]
[1731206280056,0.064677,77257.0,77254.0,0.3608]
[1731206280259,0.13592822,77257.0,77254.0,0.3608]
[1731206280767,0.07125122,77257.0,77249.0,0.05965951]
[1731206281070,0.13593322,77251.0,77249.0,0.36964384]
[1731206281262,0.064682,77251.0,77249.0,0.00884384]
[1731206281462,0.064682,77251.0,77247.0,0.11548567]
[1731206281463,0.3608,77256.0,77247.0,0.06467]
[1731206281872,0.064678,77255.0,77247.0,0.06467]
[1731206282063,0.064684,77249.0,77247.0,0.06467]
[1731206282584,0.3608,77256.0,77246.0,0.01069942]
[1731206282872,0.064685,77247.0,77246.0,0.01069942]
[1731206284771,0.064685,77247.0,77246.0,0.37149942]
[1731206285365,0.064685,77247.0,77246.0,0.43616942]
[1731206285667,0.064685,77247.0,77246.0,0.07536942]
[1731206286570,0.064685,77247.0,77239.0,0.42431959]
[1731206286571,0.11101866,77255.0,77239.0,0.3626]
[1731206286767,0.11101866,77255.0,77239.0,0.3608]
[1731206286768,0.11101866,77248.0,77239.0,0.3608]
[1731206286965,0.1027,77255.0,77237.0,0.1077]
[1731206286966,0.064692,77238.0,77237.0,0.1077]
[1731206287372,0.213,77247.0,77237.0,0.1077]
[1731206287569,0.064688,77244.0,77237.0,0.1077]
[1731206287770,0.064688,77244.0,77238.0,0.064692]
[1731206290567,0.064689,77243.0,77237.0,0.47757697]
[1731206290768,0.06469,77241.0,77237.0,0.36987697]
[1731206290963,0.213,77247.0,77237.0,0.36987697]
[1731206290964,0.22200023,77247.0,77237.0,0.36987697]
[1731206291370,0.01740621,77246.0,77237.0,0.36987697]
[1731206291569,0.064691,77240.0,77237.0,0.36987697]
[1731206291876,0.01740621,77239.0,77237.0,0.36987697]
[1731206292583,0.064691,77240.0,77237.0,0.36987697]
[1731206294179,0.22200023,77247.0,77237.0,0.36987697]
[1731206294387,0.22200023,77247.0,77237.0,0.42069264]
[1731206294388,0.28668523,77247.0,77237.0,0.42069264]
[1731206294881,0.173785,77247.0,77241.0,0.064689]
[1731206295275,0.13691883,77258.0,77237.0,0.42249264]
[1731206295276,0.4618,77257.0,77244.0,0.3608]
[1731206295582,0.4618,77257.0,77252.0,0.11101866]
[1731206295785,0.4618,77257.0,77250.0,0.064682]
[1731206296685,0.4618,77257.0,77252.0,0.06468]
[1731206296982,0.4618,77257.0,77246.0,0.05081567]
[1731206297187,0.00194198,77263.0,77255.0,0.11101866]
[1731206297486,0.00194198,77263.0,77259.0,0.064674]
[1731206303793,0.064675,77260.0,77258.0,0.00870143]
[1731206303986,0.064675,77260.0,77252.0,0.06468]
[1731206304388,0.00194198,77263.0,77256.0,0.064677]
[1731206309196,0.1004,77262.0,77256.0,0.064677]
[1731206309600,0.165073,77262.0,77256.0,0.064677]
[1731206310096,0.165073,77262.0,77256.0,0.040677]
[1731206311184,0.00194198,77263.0,77258.0,0.064675]
[1731206311391,0.00194198,77263.0,77261.0,0.064673]
[1731206311792,0.00194173,77287.0,77262.0,0.38828]
[1731206311998,0.00194173,77287.0,77277.0,0.064659]
[1731206312297,0.00194173,77287.0,77273.0,0.11101866]
[1731206312298,0.3608,77283.0,77279.0,0.064658]
[1731206312491,0.01091573,77287.0,77275.0,0.3608]
[1731206312692,0.00194173,77287.0,77279.0,0.11101866]
[1731206312993,0.00194173,77287.0,77285.0,0.064653]
[1731206313996,0.00194173,77287.0,77280.0,0.2114]
[1731206314300,0.064659,77279.0,77268.0,0.064667]
[1731206314603,0.064662,77275.0,77262.0,0.32928]
[1731206315105,0.064669,77267.0,77257.0,0.1057]
[1731206315293,0.3608,77277.0,77257.0,0.1057]
[1731206315294,0.11101866,77266.0,77257.0,0.1057]
[1731206315499,0.06467,77265.0,77257.0,0.1057]